fUSD/lending_fUSD_20250514
["ID","MTS","AMOUNT","RATE_DAILY","PERIOD"]
[361084932,1747241444408,-400.0,0.00010958,2]
[361084933,1747241444417,-400.0,0.00010958,2]
[361084934,1747241444430,-656.97,0.00010958,2]
[361084935,1747241444439,-611.8,0.00010958,2]
[361084936,1747241444449,-504.39,0.00010958,2]
[361084937,1747241444458,-2454.87,0.00010958,2]
[361084938,1747241444468,-416.45,0.00010958,2]
[361084939,1747241444477,-1409.36,0.00010958,2]
[361084940,1747241444486,-490.44,0.00010958,2]
[361084941,1747241444496,-600.94,0.00010958,2]
[361084942,1747241444505,-263.34376039,0.00010958,2]
[361084943,1747241444514,-400.0,0.00010958,2]
[361084944,1747241444524,-400.0,0.00010958,2]
[361084945,1747241444533,-400.0,0.00010958,2]
[361084946,1747241444543,-400.0,0.00010958,2]
[361084947,1747241444552,-400.0,0.00010958,2]
[361084948,1747241444561,-1132.03,0.00010958,2]
[361084949,1747241444571,-400.0,0.00010958,2]
[361084950,1747241444580,-400.0,0.00010958,2]
[361084951,1747241444590,-400.0,0.00010958,2]
[361084952,1747241444600,-400.0,0.00010958,2]
[361084953,1747241444609,-1083.18,0.00010958,2]
[361084954,1747241444619,-513.67,0.00010958,2]
[361084955,1747241444629,-511.46,0.00010958,2]
[361084956,1747241444638,-400.0,0.00010958,2]
[361084957,1747241444648,-1590.22,0.00010958,2]
[361084958,1747241444657,-400.0,0.00010958,2]
[361084959,1747241444667,-400.0,0.00010958,2]
[361084960,1747241444676,-768.18,0.00010958,2]
[361084961,1747241444687,-1780.49,0.00010958,2]
[361084962,1747241444697,-400.0,0.00010958,2]
[361084963,1747241444706,-400.0,0.00010958,2]
[361084964,1747241444716,-400.0,0.00010958,2]
[361084965,1747241444727,-400.0,0.00010958,2]
[361084966,1747241444736,-400.0,0.00010958,2]
[361084967,1747241444746,-400.0,0.00010958,2]
[361084968,1747241444755,-400.0,0.00010958,2]
[361084969,1747241444764,-1409.54,0.00010958,2]
[361084970,1747241444774,-1175.57,0.00010958,2]
[361084971,1747241444784,-400.0,0.00010958,2]
[361084972,1747241444793,-431.65,0.00010958,2]
[361084973,1747241444803,-400.0,0.00010958,2]
[361084974,1747241444812,-500.0,0.00010958,2]
[361084975,1747241444822,-400.0,0.00010958,2]
[361084976,1747241444831,-400.0,0.00010958,2]
[361084977,1747241444840,-1548.48,0.00010958,2]
[361084978,1747241444850,-400.0,0.00010958,2]
[361084979,1747241444859,-400.0,0.00010958,2]
[361084980,1747241444869,-1550.45,0.00010958,2]
[361084981,1747241444879,-5745.54,0.00010958,2]
[361084982,1747241444888,-400.0,0.00010958,2]
[361084983,1747241444898,-7757.24,0.00010958,2]
[361084984,1747241444907,-719.99,0.00010958,2]
[361084985,1747241444916,-2046.2,0.00010958,2]
[361084986,1747241444930,-400.0,0.00010958,2]
[361084987,1747241444939,-400.0,0.00010958,2]
[361084988,1747241444948,-400.0,0.00010958,2]
[361084989,1747241444958,-400.0,0.00010958,2]
[361084990,1747241444967,-400.0,0.00010958,2]
[361084991,1747241444977,-753.23,0.00010958,2]
[361084992,1747241444987,-1000.0,0.00010958,2]
[361084993,1747241444996,-400.0,0.00010958,2]
[361084994,1747241445006,-733.01,0.00010958,2]
[361084995,1747241445016,-400.0,0.00010958,2]
[361084996,1747241445026,-7030.1,0.00010958,2]
[361084997,1747241445035,-400.0,0.00010958,2]
[361084998,1747241445045,-400.0,0.00010958,2]
[361084999,1747241445054,-400.0,0.00010958,2]
[361085000,1747241445063,-400.0,0.00010958,2]
[361085001,1747241445073,-1215.73,0.00010958,2]
[361085002,1747241445083,-400.0,0.00010958,2]
[361085003,1747241445092,-409.51241846,0.00010958,2]
[361085004,1747241445102,-400.0,0.00010958,2]
[361085005,1747241445320,-5493.92,0.00010958,2]
[361085006,1747241445330,-397.58129823,0.00010958,2]
[361085007,1747241445340,-400.0,0.00010958,2]
[361085008,1747241445350,-16828.56,0.00010958,2]
[361085009,1747241445359,-400.0,0.00010958,2]
[361085010,1747241445369,-400.0,0.00010958,2]
[361085011,1747241445379,-553.53,0.00010958,2]
[361085012,1747241445389,-400.0,0.00010958,2]
[361085013,1747241445399,-400.0,0.00010958,2]
[361085014,1747241445408,-400.0,0.00010958,2]
[361085015,1747241445418,-595.59,0.00010958,2]
[361085016,1747241445430,-400.0,0.00010958,2]
[361085017,1747241445440,-423.24,0.00010958,2]
[361085018,1747241445450,-400.0,0.00010958,2]
[361085019,1747241445460,-400.0,0.00010958,2]
[361085020,1747241445470,-778.38,0.00010958,2]
[361085021,1747241445479,-400.0,0.00010958,2]
[361085022,1747241445488,-400.0,0.00010958,2]
[361085023,1747241445498,-400.0,0.00010958,2]
[361085024,1747241445507,-5344.34,0.00010958,2]
[361085025,1747241445517,-430.57,0.00010958,2]
[361085026,1747241445526,-3549.6,0.00010958,2]
[361085027,1747241445536,-400.0,0.00010958,2]
[361085028,1747241445546,-400.0,0.00010958,2]
[361085029,1747241445556,-682.73,0.00010958,2]
[361085030,1747241445565,-777.92,0.00010958,2]
[361085031,1747241445575,-400.0,0.00010958,2]
[361085032,1747241445584,-923.27,0.00010958,2]
[361085033,1747241445593,-645.15,0.00010958,2]
[361085034,1747241445603,-400.0,0.00010958,2]
[361085035,1747241445612,-194.98599414,0.00010958,2]
[361085036,1747241445621,-400.0,0.00010958,2]
[361085037,1747241445631,-680.77,0.00010958,2]
[361085038,1747241445640,-400.0,0.00010958,2]
[361085039,1747241445650,-441.36,0.00010958,2]
[361085040,1747241445659,-546.57825489,0.00010958,2]
[361085041,1747241445668,-400.0,0.00010958,2]
[361085042,1747241445680,-400.0,0.00010958,2]
[361085043,1747241445690,-536.37,0.00010958,2]
[361085044,1747241445699,-462.99,0.00010958,2]
[361085045,1747241445708,-430.53,0.00010958,2]
[361085046,1747241445717,-400.0,0.00010958,2]
[361085047,1747241445727,-1252.92,0.00010958,2]
[361085048,1747241445737,-717.63,0.00010958,2]
[361085049,1747241445746,-400.0,0.00010958,2]
[361085050,1747241445755,-681.81,0.00010958,2]
[361085051,1747241445764,-3401.85,0.00010958,2]
[361085052,1747241445773,-730.97,0.00010958,2]
[361085053,1747241445782,-400.0,0.00010958,2]
[361085054,1747241445792,-62100.22,0.00010958,2]
[361085055,1747241445802,-400.0,0.00010958,2]
[361085057,1747241445812,-555.44,0.00010958,2]
[361085058,1747241445822,-4874.48,0.00010958,2]
[361085059,1747241445832,-678.52,0.00010958,2]
[361085060,1747241445841,-400.0,0.00010958,2]
[361085061,1747241445850,-817.12,0.00010958,2]
[361085063,1747241445859,-1212.57,0.00010958,2]
[361085064,1747241445869,-400.0,0.00010958,2]
[361085066,1747241445879,-400.0,0.00010958,2]
[361085067,1747241445888,-904.14,0.00010958,2]
[361085068,1747241445897,-400.0,0.00010958,2]
[361085069,1747241445906,-1330.96,0.00010958,2]
[361085070,1747241445915,-603.43,0.00010958,2]
[361085071,1747241445927,-407.1,0.00010958,2]
[361085072,1747241445939,-400.0,0.00010958,2]
[361085073,1747241445948,-400.0,0.00010958,2]
[361085074,1747241445958,-1379.93,0.00010958,2]
[361085075,1747241445967,-7064.84,0.00010958,2]
[361085076,1747241445976,-400.0,0.00010958,2]
[361085077,1747241445985,-400.0,0.00010958,2]
[361085078,1747241445994,-400.0,0.00010958,2]
[361085079,1747241446006,-400.0,0.00010958,2]
[361085080,1747241446015,-403.57645856,0.00010958,2]
[361085081,1747241446024,-400.0,0.00010958,2]
[361085082,1747241446033,-305.20290868,0.00010958,2]
[361085083,1747241446042,-400.0,0.00010958,2]
[361085084,1747241446052,-400.0,0.00010958,2]
[361085085,1747241446061,-961.86,0.00010958,2]
[361085086,1747241446071,-412.81,0.00010958,2]
[361085087,1747241446080,-615.93,0.00010958,2]
[361085088,1747241446089,-400.0,0.00010958,2]
[361085089,1747241446098,-400.0,0.00010958,2]
[361085090,1747241446107,-409.70537119,0.00010958,2]
[361085091,1747241446116,-400.0,0.00010958,2]
[361085092,1747241446127,-400.0,0.00010958,2]
[361085093,1747241446136,-405.69223356,0.00010958,2]
[361085094,1747241446146,-896.9,0.00010958,2]
[361085095,1747241446157,-150.0,0.00010959,2]
[361085096,1747241446166,-502.54862324,0.00010973,2]
[361085097,1747241446175,-500.0,0.00010973,2]
[361085098,1747241446187,-500.0,0.00010973,2]
[361085099,1747241446196,-500.0,0.00010973,2]
[361085100,1747241446207,-500.0,0.00010973,2]
[361085101,1747241446216,-500.0,0.00010973,2]
[361085102,1747241446226,-500.0,0.00010973,2]
[361085103,1747241446236,-1083.18,0.00010998,2]
[361085104,1747241446245,-322.78981293,0.00010999,2]
[361085105,1747241446255,-400.0,0.00010999,2]
[361085106,1747241446265,-215.4102064,0.00010999,2]
[361085107,1747241446275,-400.0,0.00010999,2]
[361085108,1747241446284,-400.0,0.00010999,2]
[361085109,1747241446294,-165.92539485,0.00010999,2]
[361085110,1747241446304,-400.0,0.00010999,2]
[361085111,1747241446314,-246.81760356,0.00010999,2]
[361085112,1747241446323,-401.72803271,0.00010999,2]
[361085113,1747241446333,-400.0,0.00010999,2]
[361085114,1747241446342,-400.0,0.00010999,2]
[361085115,1747241446352,-500.0,0.00010999,2]
[361085116,1747241446361,-1083.18,0.00010999,2]
[361085117,1747241446371,-500.0,0.00010999,2]
[361085118,1747241446380,-5303.65284892,0.00011,2]
[361085119,1747241446390,-4854.95271766,0.00011,2]
[361085123,1747241446802,-5027.30160204,0.00011,2]
[361085124,1747241447240,-400.0,0.00010958,2]
[361085125,1747241447249,-401.27469673,0.00010958,2]
[361085126,1747241447258,-4907.05019858,0.00011,2]
[361085127,1747241447280,-6794.52272938,0.00011,2]
[361085128,1747241447350,-3128.95581054,0.00011,2]
[361085129,1747241447375,-1375.798098,0.00011,2]
[361085130,1747241448061,-6187.014789,0.00011,2]
[361085131,1747241448072,-4075.52450675,0.00011,2]
[361085132,1747241448084,-10314.588,0.00011,2]
[361085133,1747241448095,-10319.99999999,0.00011,2]
[361085134,1747241448105,-2564.18250494,0.00011,2]
[361085135,1747241448117,-18359.39280552,0.00011,2]
[361085136,1747241448127,-9965.03820578,0.00011,2]
[361085137,1747241448142,-8782.43751525,0.00011,2]
[361085138,1747241448169,-48201.25903103,0.00011,2]
[361085139,1747241448178,-151.0,0.00011,2]
[361085140,1747241448190,-242.863188,0.00011,2]
[361085141,1747241448199,-199.045428,0.00011,2]
[361085142,1747241448209,-199.045428,0.00011,2]
[361085143,1747241448218,-158.155376,0.00011,2]
[361085144,1747241448227,-151.0,0.00011,2]
[361085145,1747241448237,-2750.197761,0.00011,2]
[361085146,1747241448247,-151.0,0.00011,2]
[361085147,1747241448256,-2750.197761,0.00011,2]
[361085148,1747241448266,-151.0,0.00011,2]
[361085149,1747241448275,-151.0,0.00011,2]
[361085150,1747241448284,-161.161218,0.00011,2]
[361085151,1747241448293,-161.161218,0.00011,2]
[361085152,1747241448302,-151.0,0.00011,2]
[361085153,1747241448311,-151.0,0.00011,2]
[361085154,1747241448320,-151.0,0.00011,2]
[361085155,1747241448329,-151.0,0.00011,2]
[361085156,1747241448339,-151.0,0.00011,2]
[361085157,1747241448348,-151.0,0.00011,2]
[361085158,1747241448357,-151.0,0.00011,2]
[361085159,1747241448366,-53.51124887,0.00011,2]
[361085160,1747241448378,-598.25775313,0.00011,2]
[361085161,1747241448387,-151.0,0.00011,2]
[361085162,1747241448396,-151.0,0.00011,2]
[361085163,1747241448407,-151.0,0.00011,2]
[361085164,1747241448416,-651.769002,0.00011,2]
[361085165,1747241448426,-716.414225,0.00011,2]
[361085166,1747241448437,-8210.70630627,0.00011,2]
[361085167,1747241448447,-313.96617635,0.00011,2]
[361085168,1747241448457,-151.0,0.00011,2]
[361085169,1747241448467,-151.0,0.00011,2]
[361085170,1747241448476,-151.0,0.00011,2]
[361085171,1747241448486,-152.90383,0.00011,2]
[361085172,1747241448495,-151.0,0.00011,2]
[361085173,1747241448504,-151.0,0.00011,2]
[361085174,1747241448513,-1307.446552,0.00011,2]
[361085175,1747241448523,-1307.446552,0.00011,2]
[361085176,1747241448533,-158.7945,0.00011,2]
[361085177,1747241448543,-505.484284,0.00011,2]
[361085178,1747241448552,-505.484284,0.00011,2]
[361085179,1747241448561,-151.0,0.00011,2]
[361085180,1747241448571,-151.0,0.00011,2]
[361085181,1747241448580,-151.0,0.00011,2]
[361085182,1747241448590,-151.0,0.00011,2]
[361085183,1747241448599,-151.0,0.00011,2]
[361085184,1747241448609,-184.867081,0.00011,2]
[361085185,1747241448619,-151.0,0.00011,2]
[361085186,1747241448629,-151.0,0.00011006,2]
[361085187,1747241448639,-151.0,0.00011061,2]
[361085188,1747241448648,-12297.11632654,0.00011099,2]
[361085189,1747241448658,-12297.11632645,0.00011099,2]
[361085190,1747241448667,-2925.69166717,0.00011099,2]
[361085191,1747241448767,-479.48678608,0.00011099,2]
[361085192,1747241448778,-262.86340872,0.00011099,2]
[361085193,1747241448790,-602.15266943,0.00011099,2]
[361085194,1747241448801,-3522.43815578,0.00011099,2]
[361085195,1747241448813,-3654.57267506,0.00011099,2]
[361085196,1747241448823,-1770.33202771,0.00011099,2]
[361085197,1747241448839,-5517.9894875,0.00011099,2]
[361085198,1747241615879,982.0,0.000251,120]
[361085202,1747242102520,150.0,0.00010087,7]
[361085203,1747242381586,586.94,8.219e-05,2]
[361085204,1747242419091,-151.77041576,9.903e-05,2]
[361085205,1747242421825,-158.66391009,9.903e-05,2]
[361085206,1747242424341,-225.67989527,9.903e-05,2]
[361085207,1747242430009,-191.63481123,9.903e-05,2]
[361085208,1747242437898,-200.34536065,9.903e-05,2]
[361085209,1747242569746,225.57,9.816e-05,2]
[361085210,1747242603543,157.64,9.902e-05,2]
[361085225,1747242632596,-250.0,9.953e-05,2]
[361085227,1747242632605,-191.681,9.955e-05,2]
[361085229,1747242632616,-8.319,9.955e-05,2]
[361085231,1747242632625,-217.32,9.957e-05,2]
[361085233,1747242632634,-187.10541512,0.0001,2]
[361085236,1747242632652,-262.89458488,0.0001,2]
[361085238,1747242632661,-200.0,0.00010006,2]
[361085240,1747242632673,-173.3,0.00010027,2]
[361085242,1747242632682,-300.0,0.00010091,2]
[361085244,1747242632691,-1200.0,0.00010091,2]
[361085246,1747242632700,-9065.06754083,0.00010092,2]
[361085248,1747242632711,-1235.702375,0.00010092,2]
[361085250,1747242632723,-817.59887632,0.00010092,2]
[361085253,1747242632734,-353.55172949,0.00010092,2]
[361085258,1747242632767,-300.0,0.00010092,2]
[361085260,1747242632778,-326.29134845,0.00010092,2]
[361085264,1747242632807,-1455.52705125,0.00010092,2]
[361085268,1747242638183,-734.66107866,0.00010092,2]
[361085269,1747242638193,-1345.62,0.00010098,2]
[361085270,1747242638203,-206.08,0.000101,2]
[361085271,1747242638213,-314.24,0.00010109,2]
[361085272,1747242638222,-1000.0,0.00010188,2]
[361085273,1747242638231,-2041.17892134,0.00010196,2]
[361085274,1747242638394,-2475.53107866,0.00010196,2]
[361085275,1747242638404,-586.94,0.00010471,2]
[361085276,1747242638414,-207.4,0.00010488,2]
[361085277,1747242638425,-616.40256411,0.00010658,2]
[361085278,1747242638434,-616.40256411,0.00010712,2]
[361085279,1747242638444,-616.40256411,0.0001074,2]
[361085280,1747242638454,-616.40256411,0.00010795,2]
[361085281,1747242638463,-1011.0,0.000108,2]
[361085282,1747242638473,-616.40256411,0.00010849,2]
[361085283,1747242638485,-692.93812916,0.00010858,2]
[361085284,1747242638497,-1946.4631,0.00010858,2]
[361085285,1747242638507,-333.71487163,0.00010877,2]
[361085295,1747242640531,-282.68769248,0.00010877,2]
[361085296,1747242640540,-175.47318749,0.000109,2]
[361085297,1747242640809,-1734.52681251,0.000109,2]
[361085298,1747242640819,-616.40256411,0.00010932,2]
[361085299,1747242640828,-200.0,0.00010945,2]
[361085300,1747242640838,-250.0,0.00010945,2]
[361085301,1747242640847,-200.0,0.00010948,2]
[361085302,1747242640856,-200.0,0.00010948,2]
[361085303,1747242640866,-250.0,0.00010948,2]
[361085304,1747242640876,-151.0,0.00010951,2]
[361085305,1747242640885,-151.0,0.00010951,2]
[361085306,1747242640894,-1439.04716418,0.00010951,2]
[361085307,1747242640904,-668.65185757,0.00010951,2]
[361085308,1747242640914,-151.0,0.00010951,2]
[361085309,1747242640924,-150.0,0.00010957,2]
[361085310,1747242640933,-176.57553444,0.00010957,2]
[361085311,1747242640942,-1032.02,0.00010958,2]
[361085312,1747242640951,-698.64,0.00010958,2]
[361085313,1747242640961,-400.0,0.00010958,2]
[361085314,1747242640970,-400.0,0.00010958,2]
[361085315,1747242640980,-400.0,0.00010958,2]
[361085316,1747242640989,-400.0,0.00010958,2]
[361085317,1747242640998,-400.0,0.00010958,2]
[361085318,1747242641007,-400.0,0.00010958,2]
[361085319,1747242641017,-466.59049716,0.00010958,2]
[361085320,1747242641026,-400.0,0.00010958,2]
[361085321,1747242641035,-400.0,0.00010958,2]
[361085322,1747242641044,-400.0,0.00010958,2]
[361085323,1747242641054,-400.0,0.00010958,2]
[361085324,1747242641062,-400.0,0.00010958,2]
[361085325,1747242641072,-479.99,0.00010958,2]
[361085326,1747242641081,-400.0,0.00010958,2]
[361085327,1747242641090,-400.0,0.00010958,2]
[361085328,1747242641099,-400.0,0.00010958,2]
[361085329,1747242641108,-525.7,0.00010958,2]
[361085330,1747242641117,-400.0,0.00010958,2]
[361085331,1747242641127,-400.0,0.00010958,2]
[361085332,1747242641137,-400.0,0.00010958,2]
[361085333,1747242641148,-701.66,0.00010958,2]
[361085334,1747242641157,-400.0,0.00010958,2]
[361085335,1747242641167,-400.0,0.00010958,2]
[361085336,1747242641176,-400.0,0.00010958,2]
[361085337,1747242641185,-400.0,0.00010958,2]
[361085338,1747242641195,-624.8,0.00010958,2]
[361085339,1747242641206,-465.03,0.00010958,2]
[361085340,1747242641215,-400.0,0.00010958,2]
[361085341,1747242641225,-400.0,0.00010958,2]
[361085342,1747242641234,-400.0,0.00010958,2]
[361085343,1747242641244,-193.36185804,0.00010958,2]
[361085344,1747242641253,-400.0,0.00010958,2]
[361085345,1747242641262,-400.0,0.00010958,2]
[361085346,1747242641272,-400.0,0.00010958,2]
[361085347,1747242641281,-400.0,0.00010958,2]
[361085348,1747242641290,-400.0,0.00010958,2]
[361085349,1747242641299,-400.0,0.00010958,2]
[361085350,1747242641309,-400.0,0.00010958,2]
[361085351,1747242641319,-178.61409739,0.00010958,2]
[361085359,1747242643442,-221.38590261,0.00010958,2]
[361085360,1747242643453,-400.0,0.00010958,2]
[361085361,1747242643463,-613.89,0.00010958,2]
[361085362,1747242643472,-483.1355613,0.00010958,2]
[361085363,1747242643482,-400.0,0.00010958,2]
[361085364,1747242643497,-400.0,0.00010958,2]
[361085365,1747242643506,-475.59477083,0.00010958,2]
[361085366,1747242643516,-29.16683474,0.00010958,2]
[361085367,1747242643541,-370.83316526,0.00010958,2]
[361085368,1747242643550,-576.52,0.00010958,2]
[361085369,1747242643560,-400.0,0.00010958,2]
[361085370,1747242643571,-1513.12,0.00010958,2]
[361085371,1747242643581,-400.0,0.00010958,2]
[361085372,1747242643591,-400.0,0.00010958,2]
[361085373,1747242643601,-400.0,0.00010958,2]
[361085374,1747242643610,-400.0,0.00010958,2]
[361085375,1747242643619,-400.0,0.00010958,2]
[361085376,1747242643628,-400.0,0.00010958,2]
[361085377,1747242643637,-306.74511296,0.00010958,2]
[361085378,1747242643647,-400.0,0.00010958,2]
[361085379,1747242643657,-400.0,0.00010958,2]
[361085380,1747242643668,-400.0,0.00010958,2]
[361085381,1747242643677,-204.47003954,0.00010958,2]
[361085382,1747242643687,-400.0,0.00010958,2]
[361085383,1747242643696,-990.82,0.00010958,2]
[361085384,1747242643706,-400.0,0.00010958,2]
[361085385,1747242643715,-400.0,0.00010958,2]
[361085386,1747242643724,-400.0,0.00010958,2]
[361085387,1747242643734,-400.0,0.00010958,2]
[361085388,1747242643743,-462.1,0.00010958,2]
[361085389,1747242643752,-408.12,0.00010958,2]
[361085390,1747242643760,-400.0,0.00010958,2]
[361085391,1747242643770,-400.0,0.00010958,2]
[361085392,1747242643779,-400.0,0.00010958,2]
[361085393,1747242643789,-250.0,0.00010958,2]
[361085394,1747242643798,-400.0,0.00010958,2]
[361085395,1747242643808,-525.16,0.00010958,2]
[361085396,1747242643817,-400.0,0.00010958,2]
[361085397,1747242643826,-400.0,0.00010958,2]
[361085398,1747242643835,-400.0,0.00010958,2]
[361085399,1747242643845,-400.0,0.00010958,2]
[361085400,1747242643854,-400.0,0.00010958,2]
[361085401,1747242643864,-628.06,0.00010958,2]
[361085402,1747242643873,-400.0,0.00010958,2]
[361085403,1747242643882,-545.0,0.00010958,2]
[361085404,1747242643890,-369.32011248,0.00010958,2]
[361085405,1747242643898,-400.0,0.00010958,2]
[361085406,1747242643907,-400.0,0.00010958,2]
[361085407,1747242643915,-400.0,0.00010958,2]
[361085408,1747242643925,-400.0,0.00010958,2]
[361085409,1747242643933,-400.0,0.00010958,2]
[361085410,1747242643943,-400.0,0.00010958,2]
[361085411,1747242643952,-400.0,0.00010958,2]
[361085412,1747242643962,-400.0,0.00010958,2]
[361085413,1747242643973,-400.0,0.00010958,2]
[361085414,1747242643982,-400.0,0.00010958,2]
[361085415,1747242643992,-400.0,0.00010958,2]
[361085416,1747242644002,-400.0,0.00010958,2]
[361085417,1747242644011,-400.0,0.00010958,2]
[361085418,1747242644021,-400.0,0.00010958,2]
[361085419,1747242644030,-3900.87,0.00010958,2]
[361085420,1747242644039,-400.0,0.00010958,2]
[361085421,1747242644049,-400.0,0.00010958,2]
[361085422,1747242644058,-472.44,0.00010958,2]
[361085423,1747242644067,-400.0,0.00010958,2]
[361085424,1747242644076,-400.0,0.00010958,2]
[361085425,1747242644085,-400.0,0.00010958,2]
[361085426,1747242644095,-400.0,0.00010958,2]
[361085427,1747242644104,-937.71,0.00010958,2]
[361085428,1747242644113,-4278.295124,0.00010958,2]
[361085429,1747242644122,-400.0,0.00010958,2]
[361085430,1747242644130,-426.16,0.00010958,2]
[361085431,1747242644139,-622.6,0.00010958,2]
[361085432,1747242644148,-254.1029938,0.00010958,2]
[361085433,1747242644158,-947.23,0.00010958,2]
[361085434,1747242644167,-2637.03,0.00010958,2]
[361085435,1747242644177,-400.0,0.00010958,2]
[361085436,1747242644186,-400.0,0.00010958,2]
[361085437,1747242644195,-400.0,0.00010958,2]
[361085438,1747242644204,-501.87,0.00010958,2]
[361085439,1747242644213,-400.0,0.00010958,2]
[361085440,1747242644223,-400.0,0.00010958,2]
[361085441,1747242644232,-400.0,0.00010958,2]
[361085442,1747242644241,-400.0,0.00010958,2]
[361085443,1747242644251,-35168.29238377,0.00010958,2]
[361085448,1747242646178,-502.0,0.00010685,2]
[361085449,1747242646188,-770.84574623,0.00010958,2]
[361085450,1747242646197,-1910.511732,0.00010958,2]
[361085451,1747242646206,-457.5,0.00010958,2]
[361085452,1747242646215,-400.0,0.00010958,2]
[361085453,1747242646224,-1228.89560561,0.00010958,2]
[361085454,1747242646283,-644.45439439,0.00010958,2]
[361085455,1747242646292,-400.0,0.00010958,2]
[361085456,1747242646302,-627.0,0.00010958,2]
[361085457,1747242646311,-400.0,0.00010958,2]
[361085458,1747242646320,-400.0,0.00010958,2]
[361085459,1747242646329,-400.0,0.00010958,2]
[361085460,1747242646338,-400.0,0.00010958,2]
[361085461,1747242646347,-426.53,0.00010958,2]
[361085462,1747242646357,-458.92,0.00010958,2]
[361085463,1747242646367,-400.0,0.00010958,2]
[361085464,1747242646376,-400.0,0.00010958,2]
[361085465,1747242646385,-400.0,0.00010958,2]
[361085466,1747242646395,-400.0,0.00010958,2]
[361085467,1747242646405,-451.53,0.00010958,2]
[361085468,1747242646415,-400.0,0.00010958,2]
[361085469,1747242646426,-400.0,0.00010958,2]
[361085470,1747242646435,-400.0,0.00010958,2]
[361085471,1747242646444,-431.81,0.00010958,2]
[361085472,1747242646453,-348.06824526,0.00010958,2]
[361085473,1747242646463,-400.0,0.00010958,2]
[361085474,1747242646472,-400.0,0.00010958,2]
[361085475,1747242646482,-400.0,0.00010958,2]
[361085476,1747242646494,-400.0,0.00010958,2]
[361085477,1747242646504,-400.0,0.00010958,2]
[361085478,1747242646513,-130.28336035,0.00010958,2]
[361085479,1747242646540,-269.71663965,0.00010958,2]
[361085480,1747242646550,-400.0,0.00010958,2]
[361085481,1747242646561,-400.0,0.00010958,2]
[361085482,1747242646571,-400.0,0.00010958,2]
[361085483,1747242646581,-400.0,0.00010958,2]
[361085484,1747242646590,-597.93,0.00010958,2]
[361085485,1747242646599,-400.0,0.00010958,2]
[361085486,1747242646608,-400.0,0.00010958,2]
[361085487,1747242646618,-400.0,0.00010958,2]
[361085488,1747242646627,-400.0,0.00010958,2]
[361085489,1747242646636,-400.0,0.00010958,2]
[361085490,1747242646646,-400.0,0.00010958,2]
[361085491,1747242646655,-574.39,0.00010958,2]
[361085492,1747242646664,-657.06,0.00010958,2]
[361085493,1747242646676,-400.0,0.00010958,2]
[361085494,1747242646685,-400.0,0.00010958,2]
[361085495,1747242646694,-796.16,0.00010958,2]
[361085496,1747242646703,-410.45,0.00010958,2]
[361085497,1747242646712,-400.0,0.00010958,2]
[361085498,1747242646721,-597.74,0.00010958,2]
[361085499,1747242646730,-400.0,0.00010958,2]
[361085500,1747242646739,-92.06237132,0.00010958,2]